bitfinex/quotes_SOLUSD_20260202
["timestamp","ask_amount","ask_price","bid_price","bid_amount"]
[1770003963554,6.65185715,97.789,97.723,4.27527085]
[1770003963758,4.5,97.788,97.67,28.54]
[1770003964075,4.5,97.779,97.673,4.27527085]
[1770003964287,15.23500621,97.78,97.673,4.27527085]
[1770003964288,4.5,97.785,97.74,15.23500621]
[1770003964582,4.5,97.785,97.67,28.54]
[1770003964583,6.65185715,97.789,97.77,24.23806711]
[1770003964893,6.65185715,97.789,97.76,24.23806711]
[1770003965095,6.65185715,97.789,97.714,4.27527085]
[1770003965299,4.5,97.766,97.635,102.80235036]
[1770003965468,24.23806711,97.74,97.69,24.23806711]
[1770003965666,24.23806711,97.73,97.67,24.23806711]
[1770003965888,24.23806711,97.73,97.635,102.80235036]
[1770003965889,24.23806711,97.71,97.66,24.23806711]
[1770003966087,4.27527085,97.719,97.67,24.23806711]
[1770003966287,24.23806711,97.76,97.7,24.23806711]
[1770003966488,24.23806711,97.76,97.674,0.6849606]
[1770003966489,24.23806711,97.75,97.69,24.23806711]
[1770003966699,6.67830068,97.762,97.68,24.23806711]
[1770003966700,24.23806711,97.74,97.68,24.23806711]
[1770003966864,4.27527085,97.707,97.65,24.23806711]
[1770003967064,24.23806711,97.69,97.64,24.23806711]
[1770003967585,4.34965224,97.689,97.63,24.23806711]
[1770003968311,4.1575197,97.646,97.571,0.6849606]
[1770003968466,4.1575197,97.655,97.61,24.23806711]
[1770003968664,4.1575197,97.629,97.566,24.92302771]
[1770003968884,4.1575197,97.647,97.6,24.23806711]
[1770003969073,4.1575197,97.639,97.59,24.23806711]
[1770003969270,4.27527085,97.643,97.567,5.36086188]
[1770003969271,24.23806711,97.63,97.58,24.23806711]
[1770003969481,24.23806711,97.62,97.567,5.36086188]
[1770003969684,35.84376215,97.646,97.567,5.36086188]
[1770003969685,24.23806711,97.64,97.59,24.23806711]
[1770003969876,24.23806711,97.65,97.571,1.41496911]
[1770003970076,35.82321753,97.702,97.62,24.23806711]
[1770003970285,24.23806711,97.7,97.64,24.23806711]
[1770003970685,10.23446623,97.71,97.61,24.23806711]
[1770003970686,4.27527085,97.667,97.61,24.23806711]
[1770003970989,5.36086188,97.724,97.588,1.41496911]
[1770003970990,10.23971164,97.659,97.6,24.23806711]
[1770003971186,24.23806711,97.68,97.62,24.23806711]
[1770003971393,4.13311742,97.689,97.64,24.23806711]
[1770003971574,4.13311742,97.689,97.63,24.23806711]
[1770003971969,4.13311742,97.689,97.64,24.23806711]
[1770003972272,4.13311742,97.669,97.61,24.23806711]
[1770003972467,24.23806711,97.66,97.61,24.23806711]
[1770003972680,4.27527085,97.667,97.61,24.23806711]
[1770003972882,4.27527085,97.667,97.62,24.23806711]
[1770003973088,24.23806711,97.67,97.62,24.23806711]
[1770003973287,24.23806711,97.67,97.601,2.14496911]
[1770003973288,4.27527085,97.675,97.63,24.23806711]
[1770003973487,24.23806711,97.67,97.62,24.23806711]
[1770003973707,24.23806711,97.66,97.572,2.14496911]
[1770003973989,24.23806711,97.63,97.57,24.23806711]
[1770003974169,4.27527085,97.637,97.58,24.23806711]
[1770003974370,4.27527085,97.647,97.6,24.23806711]
[1770003974571,4.27527085,97.647,97.574,2.14496911]
[1770003974572,24.23806711,97.64,97.59,24.23806711]
[1770003974783,4.13311742,97.619,97.56,24.23806711]
[1770003975092,4.13311742,97.599,97.551,24.23806711]
[1770003975267,5.36086188,97.633,97.52,24.23806711]
[1770003975268,4.27527085,97.577,97.52,24.23806711]
[1770003975468,4.27527085,97.577,97.441,64.41378618]
[1770003975469,4.27527085,97.557,97.5,24.23806711]
[1770003975876,24.23806711,97.54,97.47,2.30536773]
[1770003976086,24.23806711,97.53,97.47,26.54343484]
[1770003976383,5.36086188,97.597,97.461,24.23806711]
[1770003976384,5.36086188,97.597,97.51,24.23806711]
[1770003976587,24.23806711,97.57,97.51,24.23806711]
[1770003976990,24.23806711,97.54,97.48,24.23806711]
[1770003977179,87.0919486,97.598,97.48,24.23806711]
[1770003977180,4.13311742,97.529,97.48,24.23806711]
[1770003977376,4.13311742,97.529,97.49,24.23806711]
[1770003977573,4.13311742,97.549,97.5,24.23806711]
[1770003977973,35.87057894,97.573,97.48,24.23806711]
[1770003977974,4.13311742,97.539,97.48,24.23806711]
[1770003978373,4.13311742,97.519,97.456,2.30536773]
[1770003978590,24.23806711,97.51,97.46,24.23806711]
[1770003979091,24.23806711,97.51,97.346,10.27257795]
[1770003979092,4.13311742,97.489,97.44,24.23806711]
[1770003979472,4.13311742,97.489,97.424,2.30536773]
[1770003979669,4.13311742,97.459,97.391,2.30536773]
[1770003979875,4.13311742,97.459,97.41,24.23806711]
[1770003980085,4.13311742,97.477,97.421,2.30536773]
[1770003980297,24.23806711,97.46,97.41,24.23806711]
[1770003980508,4.13311742,97.439,97.38,24.23806711]
[1770003980800,4.13311742,97.429,97.38,24.23806711]
[1770003981002,4.13311742,97.429,97.323,51.23712961]
[1770003981003,4.13311742,97.419,97.36,24.23806711]
[1770003981206,4.13311742,97.419,97.2,24.43806711]
[1770003981207,24.23806711,97.38,97.267,2.30536773]
[1770003981402,24.23806711,97.36,97.311,24.23806711]
[1770003981603,24.23806711,97.37,97.32,24.23806711]
[1770003981906,24.23806711,97.36,97.312,2.30536773]
[1770003982104,24.23806711,97.36,97.251,51.56919908]
[1770003982105,24.23806711,97.35,97.294,2.30536773]
[1770003982401,24.23806711,97.36,97.31,24.23806711]
[1770003982599,24.23806711,97.36,97.301,2.30536773]
[1770003982600,24.23806711,97.35,97.301,2.30536773]
[1770003983185,4.13311742,97.378,97.321,2.30536773]
[1770003983905,24.23806711,97.37,97.321,2.30536773]
[1770003984102,4.13311742,97.369,97.31,24.23806711]
[1770003984411,4.13311742,97.369,97.254,51.58021998]
[1770003984412,24.23806711,97.33,97.287,2.30536773]
[1770003984609,35.92580807,97.423,97.15,0.2]
[1770003984610,24.23806711,97.32,97.271,2.30536773]
[1770003984800,24.23806711,97.32,97.26,24.23806711]
[1770003984981,24.23806711,97.32,97.26,26.54343484]
[1770003985181,24.23806711,97.35,97.29,24.23806711]
[1770003985387,24.23806711,97.34,97.281,2.30536773]
[1770003985701,4.13311742,97.365,97.31,24.23806711]
[1770003986486,51.08093752,97.629,97.61,711.66294986]
[1770003986685,1.5,147.5,97.33,24.23806711]
[1770003986686,4.13311742,97.422,97.33,24.23806711]
[1770003986882,0.87465177,97.337,97.305,1.64419894]
[1770003987103,5.37931075,97.338,97.33,24.23806711]
[1770003987284,4.97664616,97.338,97.33,24.23806711]
[1770003987491,4.97664616,97.338,97.305,1.64419894]
[1770003987689,4.97664616,97.338,97.33,24.23806711]
[1770003987894,4.97664616,97.338,97.32,24.23806711]
[1770003988092,4.97664616,97.338,97.278,28.54]
[1770003988306,4.97664616,97.338,97.32,24.23806711]
[1770003988613,4.97664616,97.338,97.26,4.27527085]
[1770003988614,4.97664616,97.338,97.33,24.45631246]
[1770003990104,4.97664616,97.338,97.32,24.45631246]
[1770003990304,4.97664616,97.338,97.31,24.45631246]
[1770003990891,4.97664616,97.338,97.3,24.45631246]
[1770003991306,4.97664616,97.338,97.33,24.45631246]
[1770003991685,4.5,97.384,97.33,24.45631246]
[1770003991888,4.5,97.409,97.36,24.45631246]
[1770003992104,10.31,97.484,97.319,5.36086188]
[1770003992105,4.5,97.425,97.38,24.45631246]
[1770003992292,4.5,97.44,97.41,24.45631246]
[1770003992492,24.45631246,97.46,97.41,24.45631246]
[1770003992703,4.5,97.449,97.409,28.56]
[1770003992890,4.5,97.449,97.41,24.45631246]
[1770003993087,4.5,97.449,97.409,28.56]
[1770003993088,4.5,97.439,97.409,28.56]
[1770003993288,4.5,97.439,97.41,24.45631246]
[1770003993602,4.5,97.459,97.42,24.45631246]
[1770003993810,4.5,97.459,97.43,24.45631246]
[1770003993998,4.5,97.459,97.411,28.56]
[1770003993999,4.5,97.479,97.44,24.45631246]
[1770003994309,4.5,97.479,97.349,1.02723191]
[1770003994310,5.35905275,97.518,97.47,24.45631246]
[1770003994513,5.35905275,97.518,97.441,28.56]
[1770003994514,4.5,97.544,97.5,24.45631246]
[1770003995008,4.5,97.529,97.48,24.45631246]
[1770003995212,4.5,97.519,97.471,28.56]
[1770003995709,4.5,97.524,97.47,24.45631246]
[1770003995910,4.5,97.524,97.48,24.45631246]
[1770003996090,4.5,97.524,97.481,28.56]
[1770003996298,4.5,97.549,97.5,24.45631246]
[1770003996490,4.5,97.549,97.501,28.56]
[1770003996692,4.5,97.549,97.51,24.45631246]
[1770003996898,4.5,97.549,97.511,28.56]
[1770003997313,5.35501511,97.612,97.511,28.56]
[1770003997314,4.5,97.579,97.53,24.45631246]
[1770003997615,4.5,97.579,97.55,24.45631246]
[1770003997812,4.5,97.579,97.52,24.45631246]
[1770003998009,4.5,97.579,97.53,24.45631246]
[1770003998210,24.45631246,97.55,97.511,28.56]
[1770003998513,4.5,97.549,97.511,28.56]
[1770003999218,28.95631246,97.54,97.511,28.56]
[1770003999519,4.5,97.529,97.511,28.56]
[1770003999816,24.45631246,97.52,97.48,28.54]
[1770004000212,4.5,97.529,97.481,4.31354111]
[1770004000713,24.45631246,97.51,97.48,28.54]
[1770004001107,4.08835593,97.519,97.48,28.54]
[1770004001295,4.08835593,97.536,97.481,4.31354111]
[1770004001502,4.08835593,97.536,97.49,24.45631246]
[1770004002015,4.08835593,97.536,97.49,28.76985357]
[1770004002223,4.08835593,97.552,97.501,4.31354111]
[1770004002522,4.08835593,97.568,97.52,24.45631246]
[1770004002720,24.45631246,97.58,97.53,24.45631246]
[1770004002901,4.08835593,97.586,97.54,24.45631246]
[1770004003221,24.45631246,97.58,97.541,28.54]
[1770004003401,24.45631246,97.57,97.541,28.54]
[1770004003606,24.45631246,97.56,97.524,28.54]
[1770004004317,4.08835593,97.569,97.524,28.54]
[1770004004507,24.45631246,97.58,97.525,4.31354111]
[1770004005023,24.45631246,97.55,97.524,28.54]
[1770004005213,24.45631246,97.57,97.524,28.54]
[1770004005416,4.08835593,97.577,97.53,24.45631246]
[1770004005607,24.45631246,97.58,97.531,4.31354111]
[1770004006509,4.08835593,97.589,97.531,4.31354111]
[1770004006715,24.45631246,97.57,97.525,28.54]
[1770004007029,24.45631246,97.55,97.513,28.54]
[1770004007202,4.27527085,97.568,97.514,4.13893137]
[1770004007408,24.45631246,97.57,97.514,4.13893137]
[1770004007907,24.45631246,97.59,97.531,4.13893137]
[1770004008223,28.8018762,97.59,97.532,28.54]
[1770004008430,24.45631246,97.58,97.532,28.54]
[1770004008621,24.45631246,97.57,97.53,28.54]
[1770004009123,24.45631246,97.56,97.53,28.54]
[1770004009302,24.45631246,97.58,97.531,4.13893137]
[1770004009500,4.34556374,97.589,97.54,24.45631246]
[1770004009901,4.34556374,97.589,97.532,4.13893137]
[1770004010431,24.45631246,97.58,97.532,4.13893137]
[1770004010723,4.34556374,97.605,97.56,24.45631246]
[1770004010911,4.34556374,97.619,97.562,4.13893137]
[1770004011110,24.45631246,97.61,97.562,4.13893137]
[1770004011305,5.36086188,97.668,97.51,5.36086188]
[1770004011306,4.34556374,97.599,97.543,4.13893137]
[1770004011521,4.34556374,97.589,97.556,28.52]
[1770004011837,24.45631246,97.57,97.538,28.52]
[1770004012135,4.34556374,97.569,97.538,28.52]
[1770004012707,15.18027895,97.58,97.538,28.52]
[1770004013342,28.67815219,97.636,97.479,4.27527085]
[1770004013343,4.34556374,97.599,97.551,4.13893137]
[1770004013636,15.18027895,97.62,97.561,4.13893137]
[1770004013808,15.18027895,97.62,97.571,4.13893137]
[1770004014009,15.18027895,97.61,97.571,4.13893137]
[1770004014218,15.18027895,97.58,97.553,28.52]
[1770004014422,15.18027895,97.57,97.535,4.13893137]
[1770004014617,15.18027895,97.56,97.52,4.13893137]
[1770004014819,15.18027895,97.56,97.521,28.52]
[1770004015031,15.18027895,97.56,97.522,4.13893137]
[1770004015227,15.18027895,97.57,97.522,4.13893137]
[1770004016032,15.18027895,97.58,97.522,4.13893137]
[1770004016528,15.18027895,97.59,97.53,15.18027895]
[1770004016731,4.34556374,97.607,97.531,4.13893137]
[1770004016935,15.18027895,97.6,97.541,4.13893137]
[1770004017233,15.18027895,97.61,97.551,4.13893137]
[1770004017834,15.18027895,97.62,97.561,4.13893137]
[1770004018020,15.18027895,97.61,97.561,4.13893137]
[1770004018217,15.18027895,97.59,97.533,4.13893137]
[1770004018420,24.34445968,97.58,97.533,4.13893137]
[1770004018631,24.34445968,97.6,97.541,4.13893137]
[1770004018831,24.34445968,97.58,97.541,4.13893137]
[1770004019228,24.34445968,97.59,97.541,4.13893137]
[1770004019539,24.34445968,97.6,97.551,4.13893137]
[1770004019727,24.34445968,97.59,97.551,4.13893137]
[1770004020033,4.34556374,97.623,97.561,4.13893137]
[1770004020237,0.1,97.69,97.563,4.13893137]
[1770004020238,4.44556374,97.64,97.563,4.13893137]
[1770004020533,4.44556374,97.64,97.562,28.52]
[1770004020534,24.34445968,97.63,97.581,4.13893137]
[1770004020835,0.1,97.64,97.601,4.13893137]
[1770004021048,24.34445968,97.63,97.583,4.13893137]
[1770004021211,0.1,97.64,97.591,4.13893137]
[1770004021418,24.34445968,97.68,97.631,4.13893137]
[1770004021640,0.1,97.69,97.651,4.13893137]
[1770004021930,0.1,97.69,97.653,4.13893137]
[1770004022324,4.34556374,97.679,97.635,4.13893137]
[1770004022527,4.34556374,97.679,97.64,28.52]
[1770004022732,24.34445968,97.68,97.64,28.52]
[1770004023032,0.1,97.69,97.641,4.13893137]
[1770004023235,6.58171862,97.731,97.672,4.13893137]
[1770004023545,4.34556374,97.776,97.663,2.31828138]
[1770004023718,4.34556374,97.776,97.693,4.27527085]
[1770004024043,6.58604156,97.789,97.711,4.27527085]
[1770004024332,4.26776018,97.789,97.722,9.63613273]
[1770004024535,4.26776018,97.789,97.727,9.63613273]
[1770004024841,4.26776018,97.789,97.727,4.27527085]
[1770004025138,4.26776018,97.789,97.664,10.23918741]
[1770004025139,4.26776018,97.789,97.735,5.36086188]
[1770004025325,4.26776018,97.789,97.742,4.27527085]
[1770004025834,4.26776018,97.789,97.743,28.5]
[1770004026045,4.5,97.788,97.675,4.27527085]
[1770004026334,4.5,97.769,97.683,4.27527085]
[1770004026537,4.5,97.749,97.684,28.5]
[1770004026716,4.26776018,97.789,97.685,56.90806868]
[1770004027033,0.1,97.79,97.724,4.27527085]
[1770004027227,4.5,97.827,97.752,4.27527085]
[1770004027418,6.55201906,97.872,97.772,4.27527085]
[1770004027615,4.5,97.895,97.804,4.27527085]
[1770004027840,5.32878064,97.91,97.814,5.36086188]
[1770004028032,4.5,97.929,97.827,61.51025619]
[1770004028231,4.5,97.914,97.837,4.27527085]
[1770004028417,4.5,97.93,97.845,4.27527085]
[1770004028617,4.5,97.93,97.842,5.36086188]
[1770004028618,4.5,97.93,97.861,4.27527085]
[1770004028818,2.47215037,97.945,97.851,9.63613273]
[1770004029118,2.47215037,97.945,97.846,28.48]
[1770004029119,0.28592331,97.945,97.873,51.90323302]
[1770004029436,4.5,98.035,97.93,4.27527085]
[1770004029735,4.5,98.035,97.927,5.36086188]
[1770004029736,4.5,98.035,97.944,56.4519838]
[1770004030031,4.5,98.035,97.931,28.48]
[1770004030032,4.5,98.029,97.934,55.4940511]
[1770004030240,4.5,98.029,97.938,9.63613273]
[1770004030430,4.5,98.069,97.939,50.56074653]
[1770004030737,4.5,98.069,97.931,28.48]
[1770004030738,4.5,98.059,97.947,4.27527085]
[1770004030941,4.5,98.029,97.947,4.27527085]
[1770004031318,0.1,98.0,97.934,4.27527085]
[1770004031520,4.5,97.979,97.915,28.46]
[1770004031731,4.5,97.939,97.916,28.46]
[1770004031925,24.2673148,97.94,97.916,28.46]
[1770004032125,4.5,97.946,97.916,28.46]
[1770004032438,5.36086188,97.988,97.916,28.46]
[1770004032439,0.1,98.0,97.924,5.36086188]
[1770004032738,0.1,98.0,97.951,4.27527085]
[1770004032953,0.1,98.0,97.937,4.27527085]
[1770004033236,4.5,97.979,97.937,28.46]
[1770004033620,24.2673148,97.95,97.886,4.20250288]
[1770004033947,4.08466563,97.957,97.882,4.20250288]
[1770004034151,9.44552751,97.99,97.882,4.20250288]
[1770004034440,24.2673148,97.99,97.891,4.20250288]
[1770004034644,0.1,98.0,97.899,4.20250288]
[1770004034850,0.1,98.0,97.91,4.20250288]
[1770004035146,24.2673148,98.01,97.881,28.46]
[1770004035147,4.08466563,98.053,97.942,4.20250288]
[1770004035334,24.2673148,98.03,97.947,4.20250288]
[1770004035538,4.12592488,98.096,97.956,4.20250288]
[1770004035835,24.2673148,97.97,97.923,4.20250288]
[1770004036038,24.2673148,97.95,97.896,4.20250288]
[1770004036228,4.12592488,97.969,97.896,4.20250288]
[1770004036421,24.2673148,97.95,97.898,4.20250288]
[1770004036736,24.2673148,97.95,97.9,4.20250288]
[1770004036940,24.2673148,97.94,97.9,1.98111477]
[1770004037242,4.27527085,97.98,97.899,28.44]
[1770004037243,24.2673148,97.92,97.899,28.44]
[1770004037553,4.12592488,97.929,97.865,28.44]
[1770004037720,24.2673148,97.99,97.866,5.36086188]
[1770004037919,4.12592488,97.997,97.888,56.91002891]
[1770004038133,4.12592488,97.997,97.895,4.27527085]
[1770004038326,4.12592488,97.997,97.897,4.27527085]
[1770004038542,4.12592488,98.023,97.915,4.27527085]
[1770004038763,4.12592488,98.009,97.889,0.28432314]
[1770004038923,24.2673148,98.0,97.917,4.20250288]
[1770004039120,4.12592488,97.979,97.917,4.20250288]
[1770004039429,4.12592488,97.979,97.437,40.08336937]
[1770004039430,24.2673148,97.99,97.919,4.20250288]
[1770004039828,24.2673148,97.99,97.871,5.36086188]
[1770004039829,24.2673148,97.96,97.877,4.20250288]
[1770004040061,24.2673148,97.94,97.878,28.42]
[1770004040258,24.2673148,97.93,97.879,4.20250288]
[1770004040460,24.2673148,97.93,97.821,51.92017445]
[1770004040461,24.2673148,97.91,97.862,4.20250288]
[1770004040650,4.12592488,97.951,97.864,4.20250288]
[1770004040850,24.2673148,97.94,97.864,4.20250288]
[1770004041151,4.12592488,97.951,97.864,4.20250288]
[1770004041334,4.27527085,97.967,97.864,4.20250288]
[1770004041335,24.2673148,97.91,97.864,4.20250288]
[1770004041540,24.2673148,97.9,97.863,28.42]
[1770004041836,4.12592488,97.916,97.863,28.42]
[1770004042036,51.84658754,98.009,97.863,28.42]
[1770004042037,24.2673148,97.93,97.864,4.20250288]
[1770004042262,28.39323968,97.97,97.867,4.20250288]
[1770004042448,24.2673148,97.96,97.872,4.20250288]
[1770004042639,24.2673148,97.95,97.877,4.20250288]
[1770004043548,4.12592488,97.969,97.877,4.20250288]
[1770004043747,24.2673148,97.97,97.877,4.20250288]
[1770004043946,24.2673148,97.97,97.873,4.27527085]
[1770004043947,24.2673148,97.98,97.882,4.20250288]
[1770004044152,4.12592488,97.987,97.89,4.20250288]
[1770004044351,4.12592488,97.987,97.893,4.20250288]
[1770004044553,24.2673148,97.97,97.898,4.20250288]
[1770004044764,24.2673148,97.96,97.898,4.20250288]
[1770004044941,28.39323968,97.98,97.898,4.20250288]
[1770004045566,24.2673148,97.96,97.898,4.20250288]
[1770004045964,4.27527085,97.98,97.898,4.20250288]
[1770004046264,24.2673148,97.96,97.9,4.20250288]
[1770004046461,24.2673148,97.97,97.9,4.20250288]
[1770004046647,24.2673148,97.98,97.902,4.20250288]
[1770004046854,24.2673148,97.96,97.902,4.20250288]
[1770004047051,24.2673148,97.95,97.902,4.20250288]
[1770004047251,24.2673148,97.96,97.902,4.20250288]
[1770004048275,4.12592488,97.973,97.902,4.20250288]
[1770004048280,24.2673148,97.95,97.902,4.20250288]
[1770004048570,4.12592488,98.081,97.904,4.20250288]
[1770004048747,4.12592488,98.081,97.888,5.36086188]
[1770004048748,4.12592488,98.059,97.934,8.47777373]
[1770004049063,4.12592488,98.049,97.961,4.20250288]
[1770004049271,24.16702825,98.02,97.961,4.20250288]
[1770004049446,4.07779067,98.093,97.962,28.42]
[1770004049447,24.16702825,98.0,97.962,28.42]
[1770004049648,24.16702825,97.99,97.951,28.42]
[1770004049850,4.12592488,98.022,97.928,4.20250288]
[1770004050051,4.12592488,98.039,97.933,4.20250288]
[1770004050363,4.12592488,98.039,97.929,28.42]
[1770004050364,4.12592488,98.002,97.936,4.20250288]
[1770004050571,24.16702825,98.0,97.936,4.20250288]
[1770004050864,5.36086188,98.052,97.938,4.20250288]
[1770004050865,24.16702825,98.01,97.938,4.20250288]
[1770004051071,4.12592488,98.036,97.942,4.27527085]
[1770004051248,24.16702825,98.08,97.974,50.68247817]
[1770004051449,4.12592488,98.079,97.989,4.20250288]
[1770004051656,20.36892566,98.189,97.989,4.20250288]
[1770004051657,4.12592488,98.059,97.989,4.20250288]
[1770004051863,24.16702825,98.07,97.989,4.20250288]
[1770004052064,24.16702825,98.09,97.995,4.27527085]
[1770004052266,4.12592488,98.132,98.009,50.76650805]
[1770004052584,4.12592488,98.132,98.005,5.36086188]
[1770004052585,4.12592488,98.114,98.021,4.20250288]
[1770004052750,24.16702825,98.05,97.978,4.20250288]
[1770004053066,24.16702825,98.03,97.978,4.20250288]
[1770004053376,24.16702825,98.01,97.966,4.20250288]
[1770004053553,4.12592488,98.029,97.966,4.20250288]
[1770004053869,24.16702825,98.02,97.966,4.20250288]
[1770004054072,24.16702825,98.03,97.966,4.20250288]
[1770004054370,24.16702825,97.99,97.965,28.4]
[1770004054570,24.16702825,97.99,97.738,26.36979997]
[1770004054571,4.08466563,97.979,97.864,4.20250288]
[1770004054774,4.27527085,98.02,97.786,22.1]
[1770004054775,4.08466563,98.043,97.867,50.08666076]
[1770004055072,24.16702825,98.0,97.897,4.20250288]
[1770004055253,4.08466563,98.043,97.923,50.13209566]
[1770004055459,24.16702825,98.04,97.938,4.20250288]
[1770004055772,24.16702825,98.06,97.961,4.20250288]
[1770004055969,24.16702825,98.04,97.961,4.20250288]
[1770004056176,24.16702825,98.06,97.967,4.20250288]
[1770004056475,24.16702825,98.03,97.967,4.20250288]
[1770004056669,24.16702825,98.01,97.925,4.20250288]
[1770004056866,24.16702825,98.05,97.935,4.20250288]
[1770004057066,24.16702825,98.06,97.956,4.20250288]
[1770004057368,24.16702825,98.03,97.956,4.20250288]
[1770004057550,24.16702825,98.04,97.961,4.20250288]
[1770004057755,24.16702825,98.02,97.961,4.20250288]
[1770004057967,4.27527085,98.069,97.961,4.20250288]
[1770004057968,24.16702825,98.01,97.961,4.20250288]
[1770004058170,24.16702825,98.03,97.961,4.20250288]
[1770004058667,24.16702825,98.04,97.961,4.20250288]
[1770004058870,24.16702825,98.01,97.961,4.20250288]
[1770004059073,3.09466563,98.033,97.961,4.20250288]
[1770004059271,24.16702825,98.02,97.961,4.20250288]
[1770004059771,24.16702825,98.01,97.961,4.20250288]
[1770004060074,3.09466563,98.05,97.961,4.20250288]
[1770004060251,24.16702825,98.01,97.961,4.20250288]
[1770004060448,24.16702825,98.03,97.961,4.20250288]
[1770004060653,24.16702825,98.04,97.961,4.20250288]
[1770004060949,3.09466563,98.092,97.975,4.21446211]
[1770004061166,24.16702825,98.05,97.98,4.21446211]
[1770004061347,24.16702825,98.05,97.983,4.21446211]
[1770004061667,24.16702825,98.06,97.983,4.21446211]
[1770004061859,24.16702825,98.05,97.983,4.21446211]
[1770004062066,3.09466563,98.071,97.983,4.21446211]
[1770004062067,24.16702825,98.07,97.983,4.21446211]
[1770004062266,24.16702825,98.07,97.967,5.36086188]
[1770004062267,24.16702825,98.09,98.0,4.21446211]
[1770004062853,0.2999908,98.097,98.005,4.21446211]
[1770004062854,24.16702825,98.07,98.005,4.21446211]
[1770004063261,24.16702825,98.09,98.005,4.21446211]
[1770004063479,0.2999908,98.097,98.012,4.21446211]
[1770004063785,0.2999908,98.097,98.031,4.21446211]
[1770004064271,3.09466563,98.143,98.032,4.21446211]
[1770004064472,24.16702825,98.12,98.041,4.21446211]
[1770004064772,24.16702825,98.13,98.041,4.21446211]
[1770004064964,24.16702825,98.11,98.051,4.21446211]
[1770004065157,24.16702825,98.1,98.051,4.21446211]
[1770004065770,24.16702825,98.1,98.002,1.02038733]
[1770004065771,3.39165652,98.124,98.053,4.21446211]
[1770004065973,3.8585525,98.166,98.06,4.27527085]
[1770004066176,3.8585525,98.166,98.069,4.21446211]
[1770004066367,3.8585525,98.166,98.091,4.21446211]
[1770004066554,3.8585525,98.166,98.102,4.21446211]
[1770004066985,24.16702825,98.15,98.102,4.21446211]
[1770004067162,3.8585525,98.166,98.062,4.28275937]
[1770004067163,24.16702825,98.13,98.062,4.28275937]
[1770004067780,3.39165652,98.165,98.062,4.28275937]
[1770004068284,24.16702825,98.13,98.062,4.28275937]
[1770004068658,3.39165652,98.15,98.067,4.28275937]
[1770004068878,24.16702825,98.15,98.067,4.28275937]
[1770004069060,24.16702825,98.14,98.067,4.28275937]
[1770004069261,3.8585525,98.166,98.077,4.28275937]
[1770004069563,0.1,98.18,98.1,4.28275937]
[1770004070572,24.16702825,98.17,98.1,4.28275937]
[1770004070769,24.16702825,98.15,98.1,4.28275937]
[1770004071160,4.10368722,98.159,98.1,4.28275937]
[1770004071463,4.10368722,98.177,98.1,4.28275937]
[1770004071662,24.16702825,98.17,98.102,4.28275937]
[1770004071869,0.1,98.18,98.102,4.28275937]
[1770004072092,0.1,98.18,98.105,4.28275937]
[1770004072478,4.10368722,98.239,98.107,4.28275937]
[1770004072786,4.10368722,98.219,98.132,4.28275937]
[1770004072972,24.16702825,98.21,98.132,4.28275937]
[1770004073569,24.16702825,98.19,98.132,4.28275937]
[1770004073965,24.16702825,98.18,98.132,4.28275937]
[1770004074367,4.10368722,98.188,98.109,4.28275937]
[1770004074590,24.16702825,98.17,98.111,4.28275937]
[1770004074889,24.16702825,98.16,98.112,32.64275937]
[1770004075197,28.27071547,98.15,98.102,28.36]
[1770004075384,4.10368722,98.149,98.102,28.36]
[1770004075716,24.16702825,98.13,98.094,4.28275937]
[1770004076169,24.16702825,98.13,98.092,28.36]
[1770004076978,24.16702825,98.12,98.092,28.36]
[1770004077174,50.95792398,98.258,98.093,4.28275937]
[1770004077381,24.16702825,98.18,98.096,4.28275937]
[1770004077584,24.16702825,98.19,98.096,4.28275937]
[1770004077789,4.10368722,98.189,98.096,4.28275937]
[1770004078189,4.10368722,98.206,98.102,50.32098427]
[1770004078487,4.10368722,98.219,98.131,4.28275937]
[1770004078679,4.10368722,98.209,98.132,28.36]
[1770004078881,4.10368722,98.209,98.099,5.36086188]
[1770004078882,24.16702825,98.2,98.134,4.28275937]
[1770004079071,24.16702825,98.19,98.134,4.28275937]
[1770004079266,24.16702825,98.19,98.133,28.36]
[1770004079267,4.10368722,98.268,98.137,4.28275937]
[1770004079576,28.27071547,98.28,98.175,9.64362125]
[1770004079889,4.10368722,98.279,98.183,4.28275937]
[1770004080085,4.10368722,98.269,98.183,4.28275937]
[1770004080288,4.10368722,98.289,98.195,4.28275937]
[1770004080473,4.10368722,98.289,98.202,4.28275937]
[1770004080668,4.10368722,98.289,98.207,4.28275937]
[1770004080872,4.10368722,98.289,98.212,4.28275937]
[1770004081065,4.10368722,98.279,98.212,4.28275937]
[1770004081270,4.10368722,98.239,98.203,28.34]
[1770004081585,24.16702825,98.21,98.16,28.34]